{"text_format":"1","workbook":"xlsx","n_sheets":6,"sheets":["Frontespizio","Info","Simulatore","HP","Rendimenti limite","Tabelle"],"not_rendered":{"charts":0,"images":1,"macros":1,"external_links":1,"defined_names":3,"comments":0,"pivot_tables":0},"unopened":[],"bounds":{"document_bytes":16777216,"sheet_cells":100000,"rows_first":2000,"rows_last":500,"rows_between":2000,"halvings":0,"cell_chars":16384,"cell_head_chars":4096},"cells_cut":0,"cells_raw":0,"read":"whole","date_system":"1900"}

{"sheet":"Frontespizio","index":0,"n_rows":98,"n_cols":3,"rows_kept":98,"cut":false,"hidden":false,"merged":[[97,1,98,14],[6,2,7,13],[9,5,10,10]]}
[]
[]
[]
[]
[]
[]
[null,null,"Simulatore di calcolo degli indici CAR"]
[]
[]
[]
[]
[]
[]
[]
[]
[]
[]
[]
[]
[]
[]
[]
[]
[]
[]
[]
[]
[]
[]
[]
[]
[]
[]
[]
[]
[]
[]
[]
[]
[]
[]
[]
[]
[]
[]
[]
[]
[]
[]
[]
[]
[]
[]
[]
[]
[]
[]
[]
[]
[]
[]
[]
[]
[]
[]
[]
[]
[]
[]
[]
[]
[]
[]
[]
[]
[]
[]
[]
[]
[]
[]
[]
[]
[]
[]
[]
[]
[]
[]
[]
[]
[]
[]
[]
[]
[]
[]
[null,"Il presente foglio di calcolo si basa sugli algoritmi contenuti nel Decreto Ministeriale 4 agosto 2011, nel Decreto del Ministero dello Sviluppo Economico 5 settembre 2011 – Cogenerazione ad Alto Rendimento (CAR), nel Regolamento Delegato (UE) 2015/2402 della Commissione del 12 ottobre 2015 e nelle Linee Guida per l’applicazione del Decreto del Ministero dello Sviluppo Economico 5 settembre 2011 – Cogenerazione ad Alto Rendimento (CAR).\nIl foglio di calcolo viene reso disponibile esclusivamente per finalità di simulazione e i risultati del calcolo, strettamente dipendenti dai dati di input considerati, sono da ritenersi puramente indicativi e non costituiscono in alcun modo un’anticipazione delle attività di valutazione poste in capo al Gestore dei Servizi Energetici – GSE S.p.A.. Chiunque intenda utilizzare il presente foglio di calcolo è quindi consapevole che lo stesso non riveste carattere di ufficialità e, pertanto, il GSE spa declina ogni responsabilità in relazione a eventuali scostamenti degli indici e degli incentivi simulati dal presente strumento rispetto agli esiti dell’istruttoria."]

{"sheet":"Info","index":1,"n_rows":10,"n_cols":3,"rows_kept":10,"cut":false,"hidden":false,"merged":[[1,1,2,16],[4,1,4,16]]}
[]
[null,"Nel Simulatore, i dati da inserire servono esclusivamente per effettuare i calcoli ed esulano completamente da aspetti normativi pregnanti della richiesta di riconoscimento (quali categoria di intervento, metodi di misura, ammodernamento,...) nonché dai requisiti stessi previsti dalla normativa.\nIl numero di CB calcolato si riferisce a unità di cogenerazione entrate in esercizio dal 2007 in poi.\nNon è possibile utilizzare il Simulatore in presenza di più combustibili, energia meccanica, diversi livelli di tensione di allaccio alla rete elettrica, o casistiche particolari che prevedono eccezioni alle formule previste dalla normativa (es. Ceffettivo per via indiretta, Cponderato/equivalente, ecc.)."]
[]
[]
[null,"Le uniche celle da compilare sono quelle di color celeste, mentre nelle verdi è necessario selezionare una tra le opzioni. A seguire una legenda che fornisce indicazione sui colori delle celle utilzzati nel foglio Simulatore."]
[]
[null,null,"info per la compilazione tabelle"]
[null,null,"valori di input da inserire"]
[null,null,"valori calcolati dagli input"]
[null,null,"valori di input da selezionare"]

{"sheet":"Simulatore","index":2,"n_rows":90,"n_cols":11,"rows_kept":90,"cut":false,"hidden":false,"merged":[[1,1,1,2],[15,1,15,2],[52,1,52,2],[41,1,41,2]]}
[]
[null,"Dati generali"]
[]
[null,"Tecnologia di Cogenerazione",null,null,null,null,null,null,"Motore a combustione interna",null,{"$f":"'Rendimenti limite'!A5","v":"Turbina di condensazione a estrazione di vapore"}]
[null,null,null,null,null,null,null,null,null,null,{"$f":"'Rendimenti limite'!A7","v":"Turbina a gas a ciclo combinato con recupero di calore (con turbina di condensazione a estrazione di vapore)"}]
[null,"Capacità di Generazione [MW]",null,null,null,null,null,null,2.2400000000000002,null,{"$f":"'Rendimenti limite'!A10","v":"\"Altri tipi di tecnologia\" con turbina di condensazione a estrazione di vapore"}]
[]
[null,"Livello di tensione di connessione",null,null,null,null,null,null,"≥ 12 — < 50kV"]
[]
[null,"Rifacimento",null,null,null,null,null,null,"NO"]
[]
[null,"Regione",null,null,null,null,null,null,"Molise"]
[]
[null,"Data entrata in esercizio",null,null,null,null,null,null,"Post 1 Gennaio 2016 "]
[]
[null,"Dati energetici"]
[]
[null,"Energia elettrica totale - Etot [MWh]",null,null,null,null,null,null,11199.79]
[]
[null,"Energia elettrica esportata verso la rete [MWh]",null,null,null,null,null,null,2.94]
[]
[null,"Energia elettrica consumata in loco [MWh]",{"$f":"ROUND(C18-C20,3)","v":0},null,null,null,{"$f":"ROUND(C18-C20,3)","v":0},null,{"$f":"ROUND(I18-I20,3)","v":11196.85}]
[]
[null,"Energia termica utile nel caso di utilizzo di acqua calda / vapore (15°C, 1,013 bar) [MWh]",null,null,null,null,null,null,10799.1]
[]
[null,"Energia termica utile nel caso di utilizzo di vapore (tenendo conto del riflusso delle condense) [MWh]",null,null,null,null,null,null,0]
[]
[null,"Energia termica utile nel caso di utilizzo diretto dei gas di scarico con temperatura ≥ 250° C [MWh]",null,null,null,null,null,null,0]
[]
[null,"Energia termica utile nel caso di utilizzo diretto dei gas di scarico con temperatura < 250° C [MWh]",null,null,null,null,null,null,0]
[]
[null,"Energia termica utile cogenerata - Hchp [MWh]",{"$f":"ROUND(C24+C26+C28+C30,3)","v":0},null,null,null,{"$f":"ROUND(C24+C26+C28+C30,3)","v":0},null,{"$f":"ROUND(I24+I26+I28+I30,3)","v":10799.1}]
[]
[null,"Categoria Combustibile",null,null,null,null,null,null,"G10 - Gas naturale, GPL, GNL e biometano"]
[]
[null,"Energia di alimentazione totale consumata dall'unità (associata al combustibile) - Funità [MWh]",null,null,null,null,null,null,26394.2]
[]
[null,"Numero di ore di funzionamento",null,null,null,null,null,null,6619]
[]
[null,"Coefficiente di perdita di energia elettrica β [%]",null,null,null,null,null,null,0]
[]
[null,"Parametri di controllo"]
[]
[null,"Rendimento complessivo - ηglobale (%)",{"$f":"IF(AND(ROUND((C32+C18)/C36*100,2)<C55,OR(C4='Rendimenti limite'!A5,C4='Rendimenti limite'!A7,C4='Rendimenti limite'!A10),Simulatore!C40<=0),\"Inserire il valore nel campo β\",ROUND((C32+C18)/C36*100,2))","v":{"$error":"#DIV/0!"}},null,null,null,{"$f":"IF(AND(ROUND((G32+G18)/G36*100,1)<G55,OR(G4='Rendimenti limite'!E5,G4='Rendimenti limite'!E7,G4='Rendimenti limite'!E10),Simulatore!G40<=0),\"Inserire il valore nel campo β\",ROUND((G32+G18)/G36*100,1))","v":{"$error":"#DIV/0!"}}]
[]
[null,"Rendimento elettrico (%)",{"$f":"ROUND(C18/C36*100,2)","v":{"$error":"#DIV/0!"}},null,null,null,{"$f":"ROUND(G18/G36*100,1)","v":{"$error":"#DIV/0!"}}]
[]
[null,"Rendimento termico (%)",{"$f":"ROUND(C32/C36*100,2)","v":{"$error":"#DIV/0!"}},null,null,null,{"$f":"ROUND(G32/G36*100,1)","v":{"$error":"#DIV/0!"}}]
[]
[null,"Potenza elettrica media [MW]",{"$f":"ROUND(C18/C38,3)","v":{"$error":"#DIV/0!"}},null,null,null,{"$f":"ROUND(G18/G38,3)","v":{"$error":"#DIV/0!"}}]
[]
[]
[null,"Output"]
[]
[null,"Rendimento globale di soglia (%)",{"$f":"VLOOKUP($C$4,'Rendimenti limite'!$A$2:$S$11,19,FALSE)","v":{"$error":"#N/A"}},null,null,null,{"$f":"VLOOKUP($G$4,'Rendimenti limite'!$A$2:$S$11,19,FALSE)","v":{"$error":"#N/A"}}]
[]
[null,"Energia elettrica cogenerata - Echp [MWh]",{"$f":"IF(C44='Rendimenti limite'!A13,0,ROUND(IF(C44<C55,C61*C32,C18),3))","v":{"$error":"#DIV/0!"}},null,null,null,{"$f":"IF(G44='Rendimenti limite'!E13,0,ROUND(IF(G44<G55,G61*G32,G18),3))","v":{"$error":"#DIV/0!"}}]
[]
[null,"Energia di alimentazione consumata dall'unità nel funzionamento in cogenerazione - Fchp [MWh]",{"$f":"IF(C44='Rendimenti limite'!A13,0,ROUND(IF(C44<C55,(C32+C57)/(C55/100),C36),3))","v":{"$error":"#DIV/0!"}},null,null,null,{"$f":"IF(G44='Rendimenti limite'!E13,0,ROUND(IF(G44<G55,(G32+G57)/(G55/100),G36),3))","v":{"$error":"#DIV/0!"}}]
[]
[null,"Rapporto “energia/calore” effettivo – Ceff",{"$f":"IF(C44='Rendimenti limite'!A13,0,IF(C44<C55,ROUND(IF(AND(C55=75,C44<75),C69/(C55-C69),IF(AND(C55=80,C44<80),(C69-C55*C40/100)/(C55-C69))),4),\"\"))","v":{"$error":"#DIV/0!"}},null,null,null,{"$f":"IF(G44='Rendimenti limite'!E13,0,IF(G44<G55,ROUND(IF(AND(G55=75,G44<75),G69/(G55-G69),IF(AND(G55=80,G44<80),(G69-G55*G40/100)/(G55-G69))),4),\"\"))","v":{"$error":"#DIV/0!"}}]
[]
[null,"Risparmio di Energia Primaria - PES [%]",{"$f":"ROUND((1-1/(C72/C70+C73/C71))*100,2)","v":{"$error":"#DIV/0!"}},null,null,null,{"$f":"ROUND((1-1/(G72/G70+G73/G71))*100,2)","v":{"$error":"#DIV/0!"}}]
[]
[null,"Numero di CB",{"$f":"IF(E63<>\"\",0,ROUND(IF(C63>C90,C78*0.086*C77,\"\"),0))","v":{"$error":"#DIV/0!"}},null,null,null,{"$f":"IF(H63<>\"\",0,ROUND(IF(G63>G90,G78*0.086*G77,\"\"),0))","v":{"$error":"#DIV/0!"}}]
[]
[]
[null,"Parametri calcolati"]
[null,"ETA_NONCHPE [%]",{"$f":"ROUND(IF(C55=75,C46,100*(C18+(C32*C40/100))/C36),2)","v":{"$error":"#N/A"}},null,null,null,{"$f":"ROUND(IF(G55=75,G46,100*(G18+(G32*G40/100))/G36),2)","v":{"$error":"#N/A"}}]
[null,"REF_Eeta_corretto",{"$f":"ROUND((C86*C22/C18+C85*C20/C18)*C84,4)","v":{"$error":"#N/A"}},null,null,null,{"$f":"ROUND((G86*G22/G18+G85*G20/G18)*G84,4)","v":{"$error":"#N/A"}}]
[null,"REF_Heta",{"$f":"ROUND(((C24+C30)*C87+C26*C88+C28*C89)/C32,4)","v":{"$error":"#N/A"}},null,null,null,{"$f":"ROUND(((G24+G30)*G87+G26*G88+G28*G89)/G32,4)","v":{"$error":"#N/A"}}]
[null,"CHP_Eeta",{"$f":"ROUND(C57/C59,4)","v":{"$error":"#DIV/0!"}},null,null,null,{"$f":"ROUND(G57/G59,4)","v":{"$error":"#DIV/0!"}}]
[null,"CHP_Heta",{"$f":"ROUND(C32/C59,4)","v":{"$error":"#DIV/0!"}},null,null,null,{"$f":"ROUND(G32/G59,4)","v":{"$error":"#DIV/0!"}}]
[null,"ETA_Erif_CB_CORRETTO",{"$f":"ROUND(0.46*(C85*(1-(IF((C22/C57)<1,C22/C57,1)))+(C86*(IF((C22/C57)<1,C22/C57,1)))),4)","v":{"$error":"#N/A"}},null,null,null,{"$f":"ROUND(0.46*(G85*(1-(IF((G22/G57)<1,G22/G57,1)))+(G86*(IF((G22/G57)<1,G22/G57,1)))),4)","v":{"$error":"#N/A"}}]
[null,"ETA_Trif_CB_CORRETTO",{"$f":"ROUND((0.9*(C24+C26)+0.82*(C28+C30))/C32,4)","v":{"$error":"#DIV/0!"}},null,null,null,{"$f":"ROUND((0.9*(G24+G26)+0.82*(G28+G30))/G32,4)","v":{"$error":"#DIV/0!"}}]
[null,"POTENZA_MEDIA_CB",{"$f":"ROUND(C57/C38,3)","v":{"$error":"#DIV/0!"}},null,null,null,{"$f":"ROUND(G57/G38,3)","v":{"$error":"#DIV/0!"}}]
[null,"K",{"$f":"ROUND(IF(C10=\"SI\",1,IF(C76>1,(1.4+1.3*IF(C76>1,IF(C76>10,10-1,C76-1),0)+1.2*IF(C76>10,IF(C76>80,80-10,C76-10),0)+1.1*IF(C76>80,IF(C76>100,100-80,C76-80),0)+1*IF(C76>100,C76-100,0))/C76,IF(C76>0,1.4,0))),4)","v":{"$error":"#DIV/0!"}},null,null,null,{"$f":"ROUND(IF(G10=\"SI\",1,IF(G76>1,(1.4+1.3*IF(G76>1,IF(G76>10,10-1,G76-1),0)+1.2*IF(G76>10,IF(G76>80,80-10,G76-10),0)+1.1*IF(G76>80,IF(G76>100,100-80,G76-80),0)+1*IF(G76>100,G76-100,0))/G76,IF(G76>0,1.4,0))),4)","v":{"$error":"#DIV/0!"}}]
[null,"RISP [MWh]",{"$f":"ROUND((C57/C74)+(C32/C75)-C59,3)","v":{"$error":"#DIV/0!"}},null,null,null,{"$f":"ROUND((G57/G74)+(G32/G75)-G59,3)","v":{"$error":"#DIV/0!"}}]
[]
[]
[null,"Parametri calcolati di appoggio"]
[null,"Correzione clima",{"$f":"VLOOKUP(C12,Tabelle!$A$14:$B$33,2,FALSE)","v":{"$error":"#N/A"}},null,null,null,{"$f":"VLOOKUP(G12,Tabelle!$A$14:$B$33,2,FALSE)","v":{"$error":"#N/A"}}]
[null,"REFEeta_COMB_1",{"$f":"IF($C$14=Tabelle!$E$6,VLOOKUP(C34,Tabelle!$A$38:$C$55,3,FALSE),IF($C$14=Tabelle!$E$7,VLOOKUP(C34,Tabelle!$A$56:$C$73,3,FALSE),\"ERRORE\"))","v":"ERRORE"},null,null,null,{"$f":"IF($C$14=Tabelle!$E$6,VLOOKUP(G34,Tabelle!$A$38:$C$55,3,FALSE),IF($C$14=Tabelle!$E$7,VLOOKUP(G34,Tabelle!$A$56:$C$73,3,FALSE),\"ERRORE\"))","v":"ERRORE"}]
[null,"REFEeta_COMB_1_clima",{"$f":"ROUND(IF(OR(C34=Tabelle!A38, C34=Tabelle!A39,C34=Tabelle!A40,C34=Tabelle!A41),C83+C82,C83),5)","v":{"$error":"#VALUE!"}},null,null,null,{"$f":"ROUND(IF(OR(G34=Tabelle!E38, G34=Tabelle!E39,G34=Tabelle!E40,G34=Tabelle!E41),G83+G82,G83),5)","v":{"$error":"#VALUE!"}}]
[null,"Correzione tensione E_immessa",{"$f":"VLOOKUP(C8,Tabelle!$A$3:$C$9,2,FALSE)","v":{"$error":"#N/A"}},null,null,null,{"$f":"VLOOKUP(G8,Tabelle!$A$3:$C$9,2,FALSE)","v":{"$error":"#N/A"}}]
[null,"Correzione tensione E_autoconsumata",{"$f":"VLOOKUP(C8,Tabelle!$A$3:$C$9,3,FALSE)","v":{"$error":"#N/A"}},null,null,null,{"$f":"VLOOKUP(G8,Tabelle!$A$3:$C$9,3,FALSE)","v":{"$error":"#N/A"}}]
[null,"REFHeta_Vapore_acqua",{"$f":"IF($C$14=Tabelle!$E$7,VLOOKUP($C$34,Tabelle!$B$96:$F$113,3,FALSE),VLOOKUP($C$34,Tabelle!$B$78:$F$95,3,FALSE))","v":{"$error":"#N/A"}},null,null,null,{"$f":"IF($C$14=Tabelle!$E$7,VLOOKUP($C$34,Tabelle!$B$96:$F$113,3,FALSE),VLOOKUP($C$34,Tabelle!$B$78:$F$95,3,FALSE))","v":{"$error":"#N/A"}}]
[null,"REFHeta_Vapore_cond_reali",{"$f":"IF($C$14=Tabelle!$E$7,VLOOKUP($C$34,Tabelle!$B$96:$F$113,4,FALSE),VLOOKUP($C$34,Tabelle!$B$78:$F$95,4,FALSE))","v":{"$error":"#N/A"}},null,null,null,{"$f":"IF($C$14=Tabelle!$E$7,VLOOKUP($C$34,Tabelle!$B$96:$F$113,4,FALSE),VLOOKUP($C$34,Tabelle!$B$78:$F$95,4,FALSE))","v":{"$error":"#N/A"}}]
[null,"REFHeta_gas_scarico",{"$f":"IF($C$14=Tabelle!$E$7,VLOOKUP($C$34,Tabelle!$B$96:$F$113,5,FALSE),VLOOKUP($C$34,Tabelle!$B$78:$F$95,5,FALSE))","v":{"$error":"#N/A"}},null,null,null,{"$f":"IF($C$14=Tabelle!$E$7,VLOOKUP($C$34,Tabelle!$B$96:$F$113,5,FALSE),VLOOKUP($C$34,Tabelle!$B$78:$F$95,5,FALSE))","v":{"$error":"#N/A"}}]
[null,"PES di soglia [%]",{"$f":"IF(C6>1,9.99,0)","v":0},null,null,null,{"$f":"IF(G6>1,9.99,0)","v":0}]

{"sheet":"HP","index":3,"n_rows":5,"n_cols":7,"rows_kept":5,"cut":false,"hidden":true,"merged":[]}
["ipotesi di calcolo",null,null,null,2355,{"$f":"2+3+23+9","v":37},{"$f":"(E1-F1)/E1","v":0.98428874734607219}]
[1,"unico punto di allaccio alla rete elettrica","(no 2 o 3 richieste)"]
[2,"no energia meccanica","(no 3 richieste)"]
[3,"unico combustibile","(no 23 richieste, 7 con più di 2 combustibili)"]
[4,"no Ceff,ind - Ceff,equ","(no 9 richieste)"]

{"sheet":"Rendimenti limite","index":4,"n_rows":13,"n_cols":22,"rows_kept":13,"cut":false,"hidden":true,"merged":[]}
["Tecnologia di Cogenerazione","Pn1","ETA_E_max1","ETA_T_max1","ETA_G_max1","Pn2","ETA_E_max2","ETA_T_max2","ETA_G_max2","Pn3","ETA_E_max3","ETA_T_max3","ETA_G_max3","ETA_E_max4","ETA_T_max4","ETA_G_max4","Pn_max","Pn_min","ETA_G_soglia"]
["Motore a combustione interna",1.2,45,46,85,0.5,42,51,88,0.18,40,57,91,35,67,97,20,3.0000000000000001E-3,75,null,"Motore a combustione interna",2170]
["Turbina a gas con recupero di calore",0,35,67,97,null,null,null,null,null,null,null,null,null,null,null,60,1,75,null,"Turbina a gas con recupero di calore",74]
["Turbina a vapore a contropressione",0,25,86,97,null,null,null,null,null,null,null,null,null,null,null,61,0.9,75,null,"Microturbine",32]
["Turbina di condensazione a estrazione di vapore",0,29,46,65,null,null,null,null,null,null,null,null,null,null,null,120,6,80,null,"Turbina a gas a ciclo combinato con recupero di calore (con turbina di condensazione a estrazione di vapore)",19]
["Turbina a gas a ciclo combinato con recupero di calore (con turbina a vapore a contropressione o con turbina di condensazione senza estrazioni)",0,39,63,90,null,null,null,null,null,null,null,null,null,null,null,80,4,80,null,"Turbina a gas a ciclo combinato con recupero di calore (con turbina a vapore a contropressione o con turbina di condensazione senza estrazioni)",17]
["Turbina a gas a ciclo combinato con recupero di calore (con turbina di condensazione a estrazione di vapore)",0,52,45,86,null,null,null,null,null,null,null,null,null,null,null,900,4,80,null,"\"Altri tipi di tecnologia\"",7]
["Microturbine",0,31,60,83,null,null,null,null,null,null,null,null,null,null,null,1,0.02,75,null,"Cicli Rankine a fluido organico",7]
["\"Altri tipi di tecnologia\"",0,41,35,68,null,null,null,null,null,null,null,null,null,null,null,30,0.6,75,null,"\"Altri tipi di tecnologia\" con turbina di condensazione a estrazione di vapore",3]
["\"Altri tipi di tecnologia\" con turbina di condensazione a estrazione di vapore",0,30,70,89,null,null,null,null,null,null,null,null,null,null,null,160,10,80,null,"Turbina a vapore a contropressione",3]
["Cicli Rankine a fluido organico",0,19,65,83,null,null,null,null,null,null,null,null,null,null,null,1.2,0.7,75,null,"Turbina di condensazione a estrazione di vapore",3]
[]
["Inserire il valore nel campo β"]

{"sheet":"Tabelle","index":5,"n_rows":113,"n_cols":6,"rows_kept":113,"cut":false,"hidden":true,"merged":[]}
["Correzione tensione"]
["Tensione","immessa","auto-consumata"]
["≥ 345kV",1,0.97599999999999998,null,"SI"]
["≥ 200 — < 345kV",0.97199999999999998,0.96299999999999997,null,"NO"]
["≥ 100 — < 200kV",0.96299999999999997,0.95099999999999996]
["≥ 50 — < 100kV",0.95199999999999996,0.93600000000000005,null,"Ante 1 Gennaio 2016 "]
["≥ 12 — < 50kV",0.93500000000000005,0.91400000000000003,null,"Post 1 Gennaio 2016 "]
["≥ 0,45 — < 12kV",0.91800000000000004,0.89100000000000001]
["< 0,45kV",0.88800000000000001,0.85099999999999998]
[]
[]
["Correzione fascia climatica"]
["regione","correzione_clima"]
["Abruzzo",3.6900000000000001E-3]
["Basilicata",-1.0399999999999999E-3]
["Calabria",-1.0399999999999999E-3]
["Campania",-1.0399999999999999E-3]
["Emilia Romagna",3.6900000000000001E-3]
["Friuli Venezia Giulia",3.6900000000000001E-3]
["Lazio",-1.0399999999999999E-3]
["Liguria",3.6900000000000001E-3]
["Lombardia",3.6900000000000001E-3]
["Marche",3.6900000000000001E-3]
["Molise",3.6900000000000001E-3,null,null,"Etichette di riga","Conteggio di Numero Richiesta"]
["Piemonte",3.6900000000000001E-3,null,null,"G10",2331]
["Puglia",-1.0399999999999999E-3,null,null,"G11",16]
["Sardegna",-1.0399999999999999E-3,null,null,"G12",11]
["Sicilia",-1.0399999999999999E-3,null,null,"G13",4]
["Toscana",3.6900000000000001E-3,null,null,"L7",7]
["Trentino Alto Adige",3.6900000000000001E-3,null,null,"O14",3]
["Umbria",3.6900000000000001E-3,null,null,"S4",7]
["Valle d'Aosta",3.6900000000000001E-3,null,null,"S5",2]
["Veneto",3.6900000000000001E-3,null,null,"S6",7]
[null,null,null,null,"Totale complessivo",2388]
[]
["Rendimento elettrico di riferimento"]
["Categoria Combustibile","ANNO","REFEeta"]
["G10 - Gas naturale, GPL, GNL e biometano","2016",0.52500000000000002]
["G11 - Gas di raffineria, idrogeno e gas di sintesi","2016",0.442]
["G12 - Biogas da digestione anaerobica, gas da impianti di trattamento di acque reflue e gas di discarica","2016",0.42]
["G13 - Gas di cokeria, gas di altoforno, gas da estrazioni minerarie e altri gas di recupero (escluso il gas di raffineria) ","2016",0.35]
["S1 - Carbon fossile compresa antracite, carbone bituminoso, carbone sub- bituminoso, coke, semicoke, coke di petrolio","2016",0.442]
["S2 - Lignite, mattonelle di lignite, olio di scisto","2016",0.41799999999999998]
["S3 - Torba, mattonelle di torba","2016",0.39]
["S4 - Biomassa secca fra cui legna e altri tipi di biomassa solida compresi pellet e mattonelle di legno, trucioli di legno essiccati, scarti in legno puliti e asciutti, gusci e noccioli d'oliva e altri noccioli","2016",0.33]
["S5 - Altri tipi di biomassa solida compresi tutti i tipi di legno non inclusi in S4 e liquame nero e marrone.","2016",0.25]
["S6 - Rifiuti urbani e industriali (non rinnovabili) e rifiuti rinnovabili/biodegradabili ","2016",0.25]
["L7 - Olio combustibile pesante, gasolio, altri prodotti petroliferi","2016",0.442]
["L8 - Bioliquidi compresi biometanolo, bioetanolo, biobutanolo, biodiesel e altri bioliquidi","2016",0.442]
["L9 - Liquidi residui, compresi rifiuti biodegradabili e non rinnovabili (inclusi sego, grasso e trebbie) ","2016",0.25]
["O14 - Calore di scarto (compresi i gas di scarico ad alta temperatura e i prodotti da reazioni chimiche esotermiche)  ","2016",0.35]
["O15 -  Energia nucleare   ","2016",0]
["O16 - Energia solare termica   ","2016",0]
["O17 - Energia geotermica   ","2016",0]
["O18 - Altri combustibili non menzionati   ","2016",0]
["G10 - Gas naturale, GPL, GNL e biometano","≥2016",0.53]
["G11 - Gas di raffineria, idrogeno e gas di sintesi","≥2016",0.442]
["G12 - Biogas da digestione anaerobica, gas da impianti di trattamento di acque reflue e gas di discarica","≥2016",0.42]
["G13 - Gas di cokeria, gas di altoforno, gas da estrazioni minerarie e altri gas di recupero (escluso il gas di raffineria) ","≥2016",0.35]
["S1 - Carbon fossile compresa antracite, carbone bituminoso, carbone sub- bituminoso, coke, semicoke, coke di petrolio","≥2016",0.442]
["S2 - Lignite, mattonelle di lignite, olio di scisto","≥2016",0.41799999999999998]
["S3 - Torba, mattonelle di torba","≥2016",0.39]
["S4 - Biomassa secca fra cui legna e altri tipi di biomassa solida compresi pellet e mattonelle di legno, trucioli di legno essiccati, scarti in legno puliti e asciutti, gusci e noccioli d'oliva e altri noccioli","≥2016",0.37]
["S5 - Altri tipi di biomassa solida compresi tutti i tipi di legno non inclusi in S4 e liquame nero e marrone.","≥2016",0.3]
["S6 - Rifiuti urbani e industriali (non rinnovabili) e rifiuti rinnovabili/biodegradabili ","≥2016",0.25]
["L7 - Olio combustibile pesante, gasolio, altri prodotti petroliferi","≥2016",0.442]
["L8 - Bioliquidi compresi biometanolo, bioetanolo, biobutanolo, biodiesel e altri bioliquidi","≥2016",0.442]
["L9 - Liquidi residui, compresi rifiuti biodegradabili e non rinnovabili (inclusi sego, grasso e trebbie) ","≥2016",0.28999999999999998]
["O14 - Calore di scarto (compresi i gas di scarico ad alta temperatura e i prodotti da reazioni chimiche esotermiche)  ","≥2016",0.3]
["O15 -  Energia nucleare   ","≥2016",0.33]
["O16 - Energia solare termica   ","≥2016",0.3]
["O17 - Energia geotermica   ","≥2016",0.19500000000000001]
["O18 - Altri combustibili non menzionati   ","≥2016",0.3]
[]
[]
["Rendimento termico di riferimento"]
["Categoria Combustibile - CODICE","Categoria Combustibile","ANNO","Vapore_acqua","Vapore_cond_reali","gas_scarico"]
["G10","G10 - Gas naturale, GPL, GNL e biometano","<2016",0.9,0.85,0.82]
["G11","G11 - Gas di raffineria, idrogeno e gas di sintesi","<2016",0.89,0.84,0.81]
["G12","G12 - Biogas da digestione anaerobica, gas da impianti di trattamento di acque reflue e gas di discarica","<2016",0.7,0.65,0.62]
["G13","G13 - Gas di cokeria, gas di altoforno, gas da estrazioni minerarie e altri gas di recupero (escluso il gas di raffineria) ","<2016",0.8,0.75,0.72]
["S1","S1 - Carbon fossile compresa antracite, carbone bituminoso, carbone sub- bituminoso, coke, semicoke, coke di petrolio","<2016",0.88,0.83,0.8]
["S2","S2 - Lignite, mattonelle di lignite, olio di scisto","<2016",0.86,0.80999999999999994,0.78]
["S3","S3 - Torba, mattonelle di torba","<2016",0.86,0.80999999999999994,0.78]
["S4","S4 - Biomassa secca fra cui legna e altri tipi di biomassa solida compresi pellet e mattonelle di legno, trucioli di legno essiccati, scarti in legno puliti e asciutti, gusci e noccioli d'oliva e altri noccioli","<2016",0.86,0.80999999999999994,0.78]
["S5","S5 - Altri tipi di biomassa solida compresi tutti i tipi di legno non inclusi in S4 e liquame nero e marrone.","<2016",0.8,0.75,0.72]
["S6","S6 - Rifiuti urbani e industriali (non rinnovabili) e rifiuti rinnovabili/biodegradabili ","<2016",0.8,0.75,0.72]
["L7","L7 - Olio combustibile pesante, gasolio, altri prodotti petroliferi","<2016",0.89,0.84,0.81]
["L8","L8 - Bioliquidi compresi biometanolo, bioetanolo, biobutanolo, biodiesel e altri bioliquidi","<2016",0.89,0.84,0.81]
["L9","L9 - Liquidi residui, compresi rifiuti biodegradabili e non rinnovabili (inclusi sego, grasso e trebbie) ","<2016",0.8,0.75,0.72]
["O14","O14 - Calore di scarto (compresi i gas di scarico ad alta temperatura e i prodotti da reazioni chimiche esotermiche)  ","<2016",0.8,0.8,0.72]
["O15","O15 -  Energia nucleare   ","<2016",0,0,0]
["O16","O16 - Energia solare termica   ","<2016",0,0,0]
["O17","O17 - Energia geotermica   ","<2016",0,0,0]
["O18","O18 - Altri combustibili non menzionati   ","<2016",0,0,0]
["G10","G10 - Gas naturale, GPL, GNL e biometano","2016",0.92,0.87,0.84]
["G11","G11 - Gas di raffineria, idrogeno e gas di sintesi","2016",0.9,0.85,0.82]
["G12","G12 - Biogas da digestione anaerobica, gas da impianti di trattamento di acque reflue e gas di discarica","2016",0.8,0.75,0.72]
["G13","G13 - Gas di cokeria, gas di altoforno, gas da estrazioni minerarie e altri gas di recupero (escluso il gas di raffineria) ","2016",0.8,0.75,0.72]
["S1","S1 - Carbon fossile compresa antracite, carbone bituminoso, carbone sub- bituminoso, coke, semicoke, coke di petrolio","2016",0.88,0.83,0.8]
["S2","S2 - Lignite, mattonelle di lignite, olio di scisto","2016",0.86,0.80999999999999994,0.78]
["S3","S3 - Torba, mattonelle di torba","2016",0.86,0.80999999999999994,0.78]
["S4","S4 - Biomassa secca fra cui legna e altri tipi di biomassa solida compresi pellet e mattonelle di legno, trucioli di legno essiccati, scarti in legno puliti e asciutti, gusci e noccioli d'oliva e altri noccioli","2016",0.86,0.80999999999999994,0.78]
["S5","S5 - Altri tipi di biomassa solida compresi tutti i tipi di legno non inclusi in S4 e liquame nero e marrone.","2016",0.8,0.75,0.72]
["S6","S6 - Rifiuti urbani e industriali (non rinnovabili) e rifiuti rinnovabili/biodegradabili ","2016",0.8,0.75,0.72]
["L7","L7 - Olio combustibile pesante, gasolio, altri prodotti petroliferi","2016",0.85,0.8,0.77]
["L8","L8 - Bioliquidi compresi biometanolo, bioetanolo, biobutanolo, biodiesel e altri bioliquidi","2016",0.85,0.8,0.77]
["L9","L9 - Liquidi residui, compresi rifiuti biodegradabili e non rinnovabili (inclusi sego, grasso e trebbie) ","2016",0.75,0.7,0.67]
["O14","O14 - Calore di scarto (compresi i gas di scarico ad alta temperatura e i prodotti da reazioni chimiche esotermiche)  ","2016",0.92,0.87,0.72]
["O15","O15 -  Energia nucleare   ","2016",0.92,0.87,0]
["O16","O16 - Energia solare termica   ","2016",0.92,0.87,0]
["O17","O17 - Energia geotermica   ","2016",0.92,0.87,0]
["O18","O18 - Altri combustibili non menzionati   ","2016",0.92,0.87,0]